[Event "Krakow Championship-A 2022"]
[Site "Krakow"]
[Date "2022.07.01"]
[Round "8.11"]
[White "Szustakowski, Antoni"]
[Black "Mikrut, Dariusz"]
[Result "1-0"]
[ECO "E73"]
[WhiteElo "2265"]
[BlackElo "2361"]
[Annotator "TA"]
[PlyCount "63"]
[EventDate "2022.06.25"]
[EventType "swiss"]
[EventCountry "POL"]
[SourceTitle "playchess.com"]
[Source "ChessBase"]
[SourceQuality "1"]
[TimeControl "40/5400+30:1800+30"]

{[%evp 13,63,41,43,46,56,54,74,16,49,44,75,9,65,71,70,35,83,97,87,95,98,96,134,128,131,95,98,109,97,104,92,90,75,82,77,51,50,40,41,43,80,43,49,37,51,58,68,70,228,226,585,550]} 1. d4 {[%emt 0:00:03]} Nf6 {[%emt 0:00:42]} 2. c4 {[%emt 0:00:07]} g6 {[%emt 0:00:05]} 3. Nc3 {[%emt 0:00:07]} Bg7 {[%emt 0:00:07]} 4. e4 {[%emt 0:00:05]} d6 {[%emt 0:00:05]} 5. Be2 {[%emt 0:00:06]} O-O {[%emt 0:00:06]} 6. Bg5 {[%emt 0:00:07]} Na6 {[%emt 0:00:08]} 7. Qd2 {[%emt 0:00:09]} Qe8 {[%emt 0:00:44]} 8. f3 {[%emt 0:00:35] E73: King's Indian: Averbakh Variation without 6...c5.} c5 {[%emt 0:03:20]} 9. d5 {[%emt 0:01:36] [#]} e6 $146 {[%emt 0:04:55]} ({Predecessor:} 9... Nc7 10. g4 Bd7 11. a4 b6 12. Nh3 a6 13. O-O b5 14. Bh6 bxa4 15. Bxg7 Kxg7 {0-1 (63) Taimanov,A (2071)-Ager,J (2218) Bayern 2007}) 10. Bf4 {[%emt 0:10:35]} (10. O-O-O $16) 10... e5 {[%emt 0:00:51] Prevents Qf4.} 11. Be3 {[%emt 0:00:04]} Nh5 {[%emt 0:00:04]} 12. Bd1 {[%emt 0:00:11]} ({White should try} 12. g4 $16 Nf4 13. Bf1 (13. Bxf4 exf4 14. Qxf4 f5 $11)) 12... Nf4 {[%emt 0:01:07]} ({Better is} 12... Nc7 $11) 13. g3 $14 {[%emt 0:01:34]} ({Much weaker is} 13. Bxf4 exf4 14. Nge2 (14. Qxf4 f5 $17) 14... Bd7 $11) 13... Nh5 {[%emt 0:00:58]} 14. Ba4 {[%emt 0:05:37]} Qe7 {[%emt 0:00:19]} (14... Bd7 $14 15. Bxd7 Qxd7) 15. Nge2 $16 {[%emt 0:00:14]} f5 {[%emt 0:03:37] Inhibits g4.} 16. exf5 {[%emt 0:06:20]} gxf5 {[%emt 0:01:47]} 17. O-O-O {[%emt 0:07:31]} Nc7 {[%emt 0:10:00]} 18. Rhg1 {[%emt 0:01:58] White is more active.} Bd7 {[%emt 0:10:34]} 19. Bxd7 {[%emt 0:04:14]} Qxd7 {[%emt 0:00:12]} 20. g4 {[%emt 0:00:04]} fxg4 {[%emt 0:01:14]} 21. fxg4 {[%emt 0:00:09]} Nf4 {[%emt 0:00:09]} 22. Nxf4 {[%emt 0:13:37]} ({But not} 22. Bxf4 exf4 23. Nxf4 b5 $14) 22... exf4 {[%emt 0:00:55]} 23. Bxf4 {[%emt 0:00:04]} b5 {[%emt 0:01:09]} 24. Bh6 {[%emt 0:03:46] Threatens to win with Ne4.} bxc4 {[%emt 0:00:37]} 25. Qg5 {[%emt 0:01:26] Hoping for Ne4.} Rae8 {[%emt 0:02:54] Inhibits Ne4.} 26. Rge1 {[%emt 0:05:16]} Kh8 {[%emt 0:01:20]} 27. Bxg7+ {[%emt 0:02:53]} (27. Rxe8 {looks sharper.} Rxe8 28. Rf1 Qe7 29. Bxg7+ Qxg7 30. Qf4) 27... Qxg7 {[%emt 0:02:54]} 28. Qxg7+ {[%emt 0:00:06]} Kxg7 {[%emt 0:00:05]} 29. Re4 {[%emt 0:00:10]} Rxe4 {[%emt 0:12:50]} 30. Nxe4 {[%emt 0:00:40]} Nb5 {[%emt 0:09:04] [#]} (30... Ne8 $14) 31. a4 $18 {[%emt 0:04:09]} Rf4 $2 {[%emt 0:00:18]} (31... Nd4 32. Nxd6 Rd8) 32. Ng3 {[%emt 0:00:12] Weighted Error Value: White=0.15 (very precise) /Black=0.38} 1-0

[Event "Krakow Championship-A 2022"]
[Site "Krakow"]
[Date "2022.07.01"]
[Round "8.12"]
[White "Jacobsen, Mikkel Manosri"]
[Black "Pniaczek, Marek"]
[Result "1-0"]
[ECO "D36"]
[WhiteElo "2251"]
[BlackElo "2298"]
[Annotator "TA"]
[PlyCount "67"]
[EventDate "2022.06.25"]
[EventType "swiss"]
[EventCountry "POL"]
[SourceTitle "playchess.com"]
[Source "ChessBase"]
[SourceQuality "1"]
[TimeControl "40/5400+30:1800+30"]

{[%evp 12,67,19,17,16,22,26,20,23,19,22,22,17,15,14,8,15,0,12,0,0,0,0,0,0,0,0,0,164,164,188,187,196,167,193,212,206,56,251,227,292,277,423,406,802,821,763,822,906,876,890,835,875,866,987,1000,1372,778]} 1. d4 {[%emt 0:00:03]} Nf6 {[%emt 0:00:04]} 2. c4 {[%emt 0:00:04]} e6 {[%emt 0:00:05]} 3. Nc3 {[%emt 0:00:04]} d5 {[%emt 0:00:15]} 4. cxd5 {[%emt 0:00:26]} exd5 {[%emt 0:00:05]} 5. Bg5 {[%emt 0:00:10]} c6 {[%emt 0:00:38]} 6. Qc2 {[%emt 0:00:28]} Bd6 {[%emt 0:00:32]} 7. e3 {[%emt 0:00:13]} O-O {[%emt 0:00:35] D36: Queen's Gambit Declined: Exchange Variation: Main line (5 Bg5 c6 6 Qc2).} 8. Bd3 {[%emt 0:00:23][%cal Od3h7] Black must now prevent Bxh7+!} h6 {[%emt 0:00:33]} 9. Bh4 {[%emt 0:00:14]} Re8 {[%emt 0:04:45] The position is equal.} 10. Nge2 {[%emt 0:01:06]} a5 {[%emt 0:01:31]} 11. h3 {[%emt 0:02:37]} Na6 {[%emt 0:00:06][%cal Bb8a6,Ba6c7,Bc7e6,Be6g5,Bg5f3][%mdl 32]} 12. a3 {[%emt 0:01:15] Inhibits Nb4.} Nc7 {[%emt 0:02:32] [#]} 13. Rd1 $146 {[%emt 0:06:30]} ({Predecessor:} 13. O-O Ne6 14. f4 Be7 15. Ng3 g5 16. fxg5 hxg5 17. Nf5 gxh4 18. Qf2 Ng7 19. Nh6+ {0-1 (29) Dubov,D (2702)-Xiong,J (2688) Chess.com INT 2022}) 13... Ne6 {[%emt 0:02:05]} 14. f3 {[%emt 0:03:54]} Ng5 {[%emt 0:22:25]} 15. e4 {[%emt 0:06:58]} Nfxe4 {[%emt 0:01:36]} 16. fxe4 {[%emt 0:01:18] Threatens to win with e5.} Nf3+ 17. gxf3 {[%emt 0:00:18]} Qxh4+ {[%emt 0:00:07]} 18. Kd2 {[%emt 0:12:01]} Qg5+ {[%emt 0:00:46]} 19. Ke1 {[%emt 0:00:31] aiming for e5.} Qg2 $2 {[%emt 0:05:33] [#]} (19... Qh4+ $11 {and Black is okay.} 20. Kd2 Qg5+ 21. Ke1 Qh4+ 22. Kd2) 20. Rf1 $1 $18 {[%emt 0:05:26]} ({Worse is} 20. Rg1 Bg3+ 21. Kd2 Bf4+ 22. Ke1 Qh2 23. Nxf4 Qxg1+ 24. Ke2 Qxd4 25. Nfxd5 cxd5 $15) 20... Bxh3 {[%emt 0:01:29]} 21. Rf2 {[%emt 0:01:24]} Qg5 {[%emt 0:03:20]} 22. e5 {[%emt 0:01:52]} Be7 {[%emt 0:06:16]} 23. f4 {[%emt 0:05:53]} Qh4 {[%emt 0:02:08]} 24. Qd2 {[%emt 0:07:17]} (24. Bh7+ $18 Kh8 25. Bf5) 24... f6 $2 {[%emt 0:01:27] [#] Loses the game.} ({Better is} 24... b5 $1 $14) 25. Qe3 $1 {[%emt 0:04:32] And now Kd2 would win.} ({Weaker is} 25. Bg6 Bg4 26. Qe3 (26. Bxe8 Qh1+ 27. Rf1 Qh4+ 28. Rf2 Qh1+ 29. Rf1 Qh4+ 30. Rf2 $11) 26... fxe5 27. dxe5 (27. Bxe8 exd4 28. Rxd4 Rxe8 $14) 27... Reb8 $16) 25... fxe5 {[%emt 0:00:16]} 26. dxe5 {[%emt 0:00:10]} ({Not} 26. fxe5 Rf8 $11) 26... b5 {[%emt 0:03:56]} (26... b6 $142 27. Qxb6 Bd7) 27. Kd2 {[%emt 0:04:04]} b4 {[%emt 0:00:32] [#]} (27... Be6 $142 28. Rg1 b4) 28. Rh2 $1 {[%emt 0:05:04] White is clearly winning.} bxc3+ {[%emt 0:00:24]} (28... d4 29. Nxd4) 29. bxc3 {[%emt 0:00:01]} Rab8 {[%emt 0:02:26]} 30. Rxh3 {[%emt 0:03:47]} Rb2+ {[%emt 0:01:03]} 31. Bc2 {[%emt 0:00:31]} Qg4 {[%emt 0:01:11]} 32. Qd3 {[%emt 0:00:29] Rg1 is the strong threat.} d4 {[%emt 0:01:15]} 33. Rg1 {[%emt 0:04:06]} dxc3+ {[%emt 0:00:32]} 34. Kxc3 {[%emt 0:00:06] Weighted Error Value: White=0.10 (very precise) /Black=0.44} 1-0

[Event "Krakow Championship-A 2022"]
[Site "Krakow"]
[Date "2022.07.01"]
[Round "8.13"]
[White "Trybus, Daniel"]
[Black "Paszewski, Mateusz"]
[Result "1/2-1/2"]
[ECO "B15"]
[WhiteElo "2145"]
[BlackElo "2286"]
[Annotator "TA"]
[PlyCount "118"]
[EventDate "2022.06.25"]
[EventType "swiss"]
[EventCountry "POL"]
[SourceTitle "playchess.com"]
[Source "ChessBase"]
[SourceQuality "1"]
[TimeControl "40/5400+30:1800+30"]

{[%evp 14,118,18,20,21,28,43,18,15,35,52,41,50,51,53,54,43,50,56,52,52,30,40,-6,0,0,0,-15,-14,0,0,-111,-115,-368,-354,-360,-332,-350,-320,-596,-589,-579,-560,-722,-748,-710,-495,-626,-621,-598,-479,-448,-481,-472,-468,-433,-266,-287,-255,-355,-228,-228,-226,-226,-220,-209,-210,-249,-249,-249,-235,-314,-128,-577,-582,-575,-564,-566,-541,-504,-481,-462,-110,-178,-159,-775,-610,-893,-880,-940,-931,-1712,-1747,-6161,-5786,-29972,-29973,-29973,-29974,-29974,0,-230,0,-29964,0,-181,1344]} 1. e4 {[%emt 0:00:02]} c6 {[%emt 0:00:24]} 2. d4 {[%emt 0:00:04]} d5 {[%emt 0:00:02]} 3. Nc3 {[%emt 0:00:02]} dxe4 {[%emt 0:00:05]} 4. Nxe4 {[%emt 0:00:03]} Nf6 {[%emt 0:00:14]} 5. Nxf6+ {[%emt 0:00:04]} exf6 {[%emt 0:00:03]} 6. c3 {[%emt 0:00:04]} Bd6 {[%emt 0:00:23]} 7. Bd3 {[%emt 0:00:06]} O-O {[%emt 0:00:04]} 8. Qc2 {[%emt 0:00:06] Active counter play!} Re8+ {[%emt 0:00:04] B15: Caro-Kann: 3 Nc3: 3...g6 and 3...dxe4 4 Nxe4 Nf6 5 Nxf6+ exf6.} 9. Ne2 {[%emt 0:00:04]} h5 {[%emt 0:00:03]} 10. Be3 {[%emt 0:00:13]} Nd7 {[%emt 0:00:35] The position is equal.} 11. O-O-O {[%emt 0:01:44]} b5 {[%emt 0:01:17]} 12. d5 {[%emt 0:01:01]} c5 {[%emt 0:01:04]} 13. Bxb5 {[%emt 0:04:39]} Rb8 {[%emt 0:00:54]} 14. c4 {[%emt 0:07:57]} a6 {[%emt 0:01:08]} 15. Ba4 {[%emt 0:01:37]} Re5 {[%emt 0:01:34]} 16. Nc3 {[%emt 0:05:55]} Nb6 {[%emt 0:02:15]} 17. Bb3 {[%emt 0:01:38] [#]} a5 $146 {[%emt 0:01:13]} ({Predecessor:} 17... Bf5 18. Qd2 a5 19. a3 Nxd5 20. Nxd5 Rxb3 21. Nc3 Rb6 22. Nb5 Re6 23. Qxa5 Qb8 24. Rxd6 Rbxd6 25. Nxd6 Qxd6 {1-0 (61) Ivic,V (2487)-Hansen,T (2423) Porto Carras 2018}) 18. Rhe1 {[%emt 0:05:11]} (18. g3 $14) 18... a4 $11 {[%emt 0:00:33]} 19. Nxa4 {[%emt 0:04:33]} Bf5 {[%emt 0:02:42]} 20. Qc3 {[%emt 0:11:01]} (20. Rd3 $5) 20... Nxa4 {[%emt 0:01:57]} 21. Bxa4 {[%emt 0:03:38]} Re4 {[%emt 0:00:09]} 22. f4 {[%emt 0:04:21] Against Be5} (22. Bb5 $11) 22... Bc7 $1 $17 {[%emt 0:28:14]} 23. Bxc5 $2 {[%emt 0:11:09][%mdl 8192]} (23. Bc2 Ba5 24. Qa3 (24. b4 $2 Bxb4 25. Bxe4 Bxe4 $19) 24... Bb4 25. Bxe4 (25. Qa6 $2 Ra8 $19) 25... Bxa3 26. Bxf5 Bxb2+ 27. Kd2 Qa5+ 28. Ke2 Bc3 $19) (23. Re2 $17 {might work better.}) 23... Bxf4+ $19 {[%emt 0:03:02][%cal Bc7f4,Bf4e3,Be3d4,Bd4e5,Be5h2,Bh2d6,Bd6c5][%mdl 32]} 24. Be3 {[%emt 0:00:04]} Qc7 {[%emt 0:35:40]} (24... Be5 25. Rd4 $1 $17 (25. Bd4 Bf4+ 26. Be3 Be5 $17)) 25. b3 {[%emt 0:19:03]} Qc5 {[%emt 0:01:24] ( -> ...Qa3+)} 26. Kd2 $2 {[%emt 0:09:10]} (26. Rd3 Qa3+ 27. Kd1 Bg4+ 28. Kd2) 26... Rd4+ {[%emt 0:01:20]} 27. Ke2 {[%emt 0:00:47]} Bxe3 {[%emt 0:02:51]} ({And not} 27... Bg4+ 28. Kf2 Bxe3+ 29. Qxe3 Rf4+ 30. Kg1 (30. Kg3 $2 g5 $19) 30... Qxe3+ 31. Rxe3 Bxd1 32. d6 $19) 28. Rxd4 {[%emt 0:00:32]} Bxd4 {[%emt 0:00:05] This bishop pair is nice.} (28... Qxd4 $2 29. Qxe3 Qb2+ 30. Kf1 $18) 29. Qd2 {[%emt 0:00:05]} Be5 {[%emt 0:03:09]} 30. Kf1 {[%emt 0:01:56]} Bxh2 {[%emt 0:01:38]} 31. Qe3 {[%emt 0:00:32] Prevents Qg1+.} Bd6 {[%emt 0:04:26]} 32. Qxc5 {[%emt 0:01:08]} Bxc5 {[%emt 0:00:00]} 33. Rd1 {[%emt 0:00:09]} Rd8 {[%emt 0:01:19]} 34. Bc6 {[%emt 0:00:15]} Bd7 {[%emt 0:01:14]} 35. Rb1 {[%emt 0:00:14]} Bb4 {[%emt 0:01:34] Threatens to win with ...Bxc6.} 36. a3 {[%emt 0:00:18]} Bxa3 {[%emt 0:01:18] Strongly threatening ...Bf5.} 37. b4 {[%emt 0:00:03]} Bxc6 {[%emt 0:01:36]} 38. dxc6 {[%emt 0:00:02][%mdl 4096] Endgame KRB-KR} Rc8 {[%emt 0:00:01]} ({Stronger than} 38... Rd4 39. c5 Rd8 40. Rb3 Bxb4 41. Rxb4 $15) 39. b5 {[%emt 0:00:43]} Kf8 {[%emt 0:01:06]} 40. Rd1 {[%emt 0:05:30]} Ke7 {[%emt 0:01:48] ...h4 is the strong threat.} 41. Rd5 {[%emt 0:30:34]} Bd6 {[%emt 0:12:48] aiming for ...g5.} 42. c5 {[%emt 0:00:00]} Bf4 {[%emt 0:01:14]} (42... Be5 $19 {is more deadly.} 43. b6 Bb8) 43. Rd7+ $2 {[%emt 0:00:00][%mdl 8192]} (43. Rd4 $17 {was the crucial defense.} Be5 44. Re4) 43... Ke6 {[%emt 0:00:09]} 44. Ke2 {[%emt 0:00:00]} h4 {[%emt 0:05:25]} 45. Kd3 {[%emt 0:00:00]} g5 {[%emt 0:00:14][%cal Bg7g5,Bg5g4,Bg4h3,Bh3h2][%mdl 32]} 46. Kc4 {[%emt 0:00:00]} f5 $1 {[%emt 0:00:55]} 47. Rd4 {[%emt 0:00:00]} Be5 $2 {[%emt 0:01:06]} (47... Bb8 $19 48. b6 g4) 48. b6 {[%emt 0:00:00]} Rxc6 {[%emt 0:04:35]} (48... Bxd4 $2 49. b7 Rxc6 50. Kxd4 $18) 49. Rd5 {[%emt 0:00:00]} (49. Rd8 $17 Bc7 50. b7) 49... Bg3 {[%emt 0:02:42]} 50. Rd2 {[%emt 0:00:00]} g4 {[%emt 0:02:06]} 51. Kb5 {[%emt 0:00:00]} Rc8 {[%emt 0:00:01] White must now prevent ...h3.} 52. c6 {[%emt 0:00:00]} h3 {[%emt 0:00:26] And now ...h2 would win.} 53. b7 {[%emt 0:00:00]} Rb8 {[%emt 0:04:23]} 54. gxh3 {[%emt 0:00:00]} gxh3 {[%emt 0:00:08]} 55. Kb6 {[%emt 0:00:00]} h2 {[%emt 0:00:03]} 56. Rd1 {[%emt 0:00:00] [#]} Bf2+ $2 {[%emt 0:02:30]} (56... Rd8 $1 {[%mdl 512]} 57. Rb1 (57. Rxd8 h1=Q) 57... Bb8 58. Rf1 Rd2 59. Rh1 Kf6 60. Rb1 Rc2 61. Rh1 Rb2+ 62. Kc5 Rg2 63. Kb6 Rg1 64. c7 Bxc7+ 65. Kxc7 Rxh1 66. b8=Q Rc1+ 67. Kd8 Rd1+ 68. Kc7 h1=Q 69. Qb6+ Kg7 70. Qb5 Rc1+ 71. Kb6 Kg6 72. Ka5 Ra1+ 73. Kb6 Rc1 74. Ka7 Rc7+ 75. Kb8 Qh2 76. Qb6+ Rc6+ 77. Ka7 Rxb6 78. Kxb6 f4 79. Kc6 f3 80. Kc5 f2 81. Kc6 f1=Q 82. Kd7 Qb5+ 83. Kd8 Qhb8+ 84. Ke7 Q5e8#) 57. Ka5 $2 {[%emt 0:00:00]} (57. Ka6 $1 $11 {and White has nothing to worry.} Bg3 58. Kb6) 57... Bg3 {[%emt 0:00:14]} 58. Kb6 {[%emt 0:00:00] [#] Prevents Bc7+.} Bf2+ $2 {[%emt 0:00:14]} (58... Rd8 $1 {[%mdl 512] mates} 59. Rb1 (59. Rc1 Rd2) 59... Bb8 60. Rf1 Rd2 61. Rh1 Kf6 62. Rb1 Rc2 63. Rh1 Rb2+ 64. Kc5 Rg2 65. c7 Bxc7 66. Kb5 Rg1 67. Rxh2 Bxh2 68. Kc4 Rb1 69. Kd4 Rxb7 70. Kd5 Bg1 71. Kc4 f4 72. Kd5 f3 73. Kd6 f2 74. Kc6 f1=Q $1 75. Kxb7 Ke7 76. Kc8 Qa6+ 77. Kc7 Bh2#) 59. Ka5 {[%emt 0:00:00] [#] Intending c7 and mate.} Ke5 $4 {[%mdl 40960] White used his chance.  Weighted Error Value: White=0.58/Black=0.22 (precise) . An unexpected result.} (59... Rxb7 $3 $19 60. cxb7 Bg3) 1/2-1/2

[Event "Krakow Championship-A 2022"]
[Site "Krakow"]
[Date "2022.07.01"]
[Round "8.14"]
[White "Stevik, Patrik jun."]
[Black "Lim, Zhuo Ren"]
[Result "0-1"]
[ECO "A67"]
[WhiteElo "2188"]
[BlackElo "2290"]
[Annotator "TA"]
[PlyCount "78"]
[EventDate "2022.06.25"]
[EventType "swiss"]
[EventCountry "POL"]
[SourceTitle "playchess.com"]
[Source "ChessBase"]
[SourceQuality "1"]
[TimeControl "40/5400+30:1800+30"]

{[%evp 17,78,20,49,44,53,51,50,54,60,37,39,39,39,43,42,39,38,49,51,60,50,42,58,58,52,0,25,38,88,94,104,26,22,32,48,20,20,22,23,28,17,-459,-459,-459,-453,-441,-437,-496,-496,-568,-565,-548,-537,-683,-656,-1046,-1034,-1034,-994,-927,-926,-937,-867]} 1. d4 {[%emt 0:02:01]} Nf6 {[%emt 0:01:08]} 2. c4 {[%emt 0:00:12]} e6 {[%emt 0:00:13]} 3. Nc3 {[%emt 0:00:10]} c5 {[%emt 0:01:22]} 4. d5 {[%emt 0:00:08]} exd5 {[%emt 0:00:15]} 5. cxd5 {[%emt 0:00:01]} d6 {[%emt 0:00:07]} 6. e4 {[%emt 0:00:11]} g6 {[%emt 0:00:17]} 7. f4 {[%emt 0:00:10]} Bg7 {[%emt 0:00:24]} 8. Bb5+ {[%emt 0:00:27]} Nfd7 {[%emt 0:00:39]} 9. a4 {[%emt 0:00:06]} Qh4+ {[%emt 0:06:21]} 10. g3 {[%emt 0:07:34] A67: Modern Benoni: Taimanov Variation.} Qd8 {[%emt 0:00:27]} 11. Nf3 {[%emt 0:01:39]} O-O {[%emt 0:01:15]} 12. O-O {[%emt 0:00:47] White is slightly better.} Na6 {[%emt 0:03:22]} 13. Re1 {[%emt 0:02:14] Strongly threatening e5.} Nb4 {[%emt 0:01:12]} 14. e5 {[%emt 0:06:40]} a6 {[%emt 0:01:50]} 15. e6 {[%emt 0:06:32]} axb5 {[%emt 0:05:13]} 16. e7 {[%emt 0:03:17]} Qa5 {[%emt 0:01:37]} 17. e8=Q {[%emt 0:00:39]} Rxe8 {[%emt 0:00:15]} 18. Rxe8+ {[%emt 0:00:07]} Nf8 $1 {[%emt 0:00:18]} 19. Nxb5 {[%emt 0:07:00] [#]} Bg4 $146 {[%emt 0:02:18]} ({Predecessor:} 19... Bf5 20. Rxa8 Qxa8 21. Bd2 Bxb2 22. Nxd6 Bc2 23. Qe1 Qd8 24. Bxb4 cxb4 25. Ra2 Bc3 {0-1 (37) Karthikeyan,P (2342)-Pantsulaia,L (2614) New Delhi 2014}) 20. Rxa8 {[%emt 0:07:33]} (20. Nxd6 $2 Rxe8 21. Nxe8 Bd4+ 22. Kg2 Qd8 $19) 20... Qxa8 {[%emt 0:00:02]} 21. Kg2 {[%emt 0:07:40]} (21. Nxd6 Bd4+ 22. Kf1 Qd8 $17) (21. Ra3 $1 $14) 21... b6 {[%emt 0:03:23]} 22. Ra3 $1 ({Much weaker is} 22. Nxd6 Bxf3+ 23. Kxf3 (23. Qxf3 $2 Nc2 $19) 23... Nxd5 $17) 22... c4 {[%emt 0:03:18]} ({Better is} 22... Nxd5 $14 23. h3 (23. Nxd6 Ne6 $11) 23... Be6) 23. Nxd6 $16 {[%emt 0:13:22]} Nd3 {[%emt 0:05:13]} 24. Rxd3 {[%emt 0:14:46]} ({White should play} 24. Nxc4 $16 Bxf3+ 25. Kxf3 Qxd5+ 26. Ke3 Qd4+ 27. Ke2 Qe4+ 28. Ne3 Nxc1+ 29. Qxc1) 24... cxd3 $11 {[%emt 0:00:04]} 25. Qxd3 {[%emt 0:00:23] Qc4 is the strong threat.} Bxf3+ {[%emt 0:13:42]} 26. Qxf3 {[%emt 0:03:26]} Qxa4 {[%emt 0:00:07] [#] White must now prevent ...Qc2+.} 27. Qe4 {[%emt 0:01:28] Against Qc2+} Qd1 {[%emt 0:00:49]} 28. Be3 {[%emt 0:05:36]} Qb3 {[%emt 0:08:29]} 29. Bd4 $2 {[%emt 0:02:23][%mdl 8192] Now White is beyond hope.} (29. f5 $11) 29... f5 $19 {[%emt 0:02:14] Black is clearly winning.} 30. Qf3 {[%emt 0:08:27]} Qxf3+ {[%emt 0:00:25]} 31. Kxf3 {[%emt 0:00:02] [#] aiming for Ke3.} Bxd4 {[%emt 0:00:09]} 32. b3 {[%emt 0:00:58]} Nd7 {[%emt 0:00:22]} 33. g4 {[%emt 0:00:13]} fxg4+ {[%emt 0:02:21]} 34. Kxg4 {[%emt 0:00:02]} Nf6+ {[%emt 0:00:18]} 35. Kg5 {[%emt 0:00:18]} Kg7 {[%emt 0:00:30] Hoping for ...Bf2.} 36. f5 {[%emt 0:00:29]} Be3+ {[%emt 0:00:38]} 37. Kh4 {[%emt 0:00:05]} g5+ {[%emt 0:01:00]} 38. Kh3 {[%emt 0:00:01]} Bf4 {[%emt 0:00:55]} 39. Nc4 {[%emt 0:00:09]} Nxd5 {[%emt 0:00:24] Weighted Error Value: White=0.62/Black=0.07 (flawless)} 0-1

[Event "Krakow Championship-A 2022"]
[Site "Krakow"]
[Date "2022.07.01"]
[Round "8.15"]
[White "Marszalek, Maciej"]
[Black "Turcan, Richard"]
[Result "1/2-1/2"]
[ECO "A34"]
[WhiteElo "2290"]
[BlackElo "2278"]
[Annotator "TA"]
[PlyCount "89"]
[EventDate "2022.06.25"]
[EventType "swiss"]
[EventCountry "POL"]
[SourceTitle "playchess.com"]
[Source "ChessBase"]
[SourceQuality "1"]
[TimeControl "40/5400+30:1800+30"]

{[%evp 14,89,24,6,32,31,50,40,42,39,69,60,64,26,35,19,40,34,19,12,48,0,64,64,54,39,36,44,53,29,42,42,70,41,51,3,50,71,72,-58,-60,-54,-42,-148,0,0,0,0,0,0,0,0,0,0,32,-1050,0,0,0,-33,-36,-50,-48,-43,-52,-36,0,-8,0,0,0,0,0,0,0,0,0,0]} 1. c4 {[%emt 0:00:05]} Nf6 {[%emt 0:04:06]} 2. Nc3 {[%emt 0:00:22]} c5 {[%emt 0:02:37]} 3. g3 {[%emt 0:02:24]} g6 {[%emt 0:00:36]} 4. Bg2 {[%emt 0:00:06]} Bg7 {[%emt 0:00:03]} 5. e4 {[%emt 0:00:19]} Nc6 {[%emt 0:00:19]} 6. Nge2 {[%emt 0:00:07]} O-O {[%emt 0:02:08]} 7. O-O {[%emt 0:02:21]} d6 {[%emt 0:00:16]} 8. d3 {[%emt 0:00:03]} Nh5 {[%emt 0:09:08] A36: Symmetrical English vs ...g6: 4 Bg2 Bg7.} 9. Rb1 {[%emt 0:02:07]} f5 {[%emt 0:00:50]} 10. a3 {[%emt 0:01:52]} a5 {[%emt 0:04:10] [#] White is slightly better.} 11. h3 $146 {[%emt 0:08:15]} ({Predecessor:} 11. Bg5 h6 12. Be3 Kh7 13. Kh1 fxe4 14. Nxe4 Bd7 15. h3 Rb8 16. d4 cxd4 17. Nxd4 {½-½ (61) Sliwa,B-Filipowicz,A Polanica Zdroj 1966}) 11... e5 {[%emt 0:06:55]} 12. exf5 {[%emt 0:04:23]} gxf5 {[%emt 0:00:28]} 13. f4 {[%emt 0:00:24]} Qe8 {[%emt 0:09:19]} 14. Kh2 {[%emt 0:02:21]} Qg6 {[%emt 0:14:23]} 15. Nd5 {[%emt 0:04:45]} Kh8 {[%emt 0:10:11]} 16. Be3 {[%emt 0:03:08]} Rg8 {[%emt 0:08:46]} 17. Qe1 {[%emt 0:02:27]} (17. Bf3 $14 {is superior.}) 17... Bf8 {[%emt 0:06:12]} ({Black should try} 17... Bd7 $11) 18. Bf3 {[%emt 0:12:00] Active counter play!} Nf6 {[%emt 0:01:32]} 19. Nxf6 {[%emt 0:05:36]} Qxf6 {[%emt 0:00:14]} 20. Nc3 {[%emt 0:00:42]} Be6 {[%emt 0:07:30]} 21. Nd5 {[%emt 0:04:08]} Qg7 {[%emt 0:01:12]} 22. Rg1 {[%emt 0:01:53]} Re8 {[%emt 0:03:28]} 23. Qf2 {[%emt 0:01:48]} Qf7 {[%emt 0:03:22][%cal Oe5e4]} 24. Rbe1 {[%emt 0:01:49]} (24. Qe2 $14 {feels stronger.}) 24... e4 {[%emt 0:01:58]} (24... Bg7 $11) 25. dxe4 $14 {[%emt 0:05:49]} fxe4 {[%emt 0:00:01]} 26. Bg2 {[%emt 0:06:42]} (26. Bxe4 $16 {Strongly threatening f5.} Bxh3 27. Bf3) 26... Bxd5 $15 {[%emt 0:00:45]} 27. cxd5 {[%emt 0:00:01]} Qxd5 {[%emt 0:00:12]} 28. Rd1 {[%emt 0:00:35]} (28. Qc2 $15) 28... Qf7 {[%emt 0:02:03]} (28... Qb3 $17 {Hoping for ...d5.} 29. f5 d5) 29. Qd2 {[%emt 0:00:30] Inhibits d5.} Bg7 {[%emt 0:01:15] White must now prevent ...Bd4.} 30. Qxd6 {[%emt 0:01:03]} Bd4 {[%emt 0:00:01]} 31. Bxd4+ {[%emt 0:02:07]} cxd4 {[%emt 0:00:12]} 32. Rge1 {[%emt 0:00:47]} Re6 {[%emt 0:00:31]} (32... Rg6 $5 33. Qc5 Qb3 $11) 33. Qd5 {[%emt 0:01:24]} Rxg3 {[%emt 0:01:12]} (33... Qg6 $5 {[%cal Rg6g3]} 34. g4 Rd8 $11) 34. Rxd4 $2 {[%emt 0:03:22][%mdl 8192] [#]} (34. Rxe4 $14 Rxg2+ 35. Kh1) 34... Rxg2+ $2 {[%emt 0:00:52]} (34... Qxf4 $1 $19 {( -> ...Re3+)} 35. Qxe4 Rxh3+ 36. Kg1 Rxe4 37. Rdxe4 Qg5) 35. Kxg2 $11 {[%emt 0:00:28][%cal Od4d3] And now Rd3! would win.} Qg7+ {[%emt 0:00:34]} 36. Kh1 {[%emt 0:00:29]} Qg3 {[%emt 0:00:35]} 37. Qd8+ $1 {[%emt 0:02:49]} Nxd8 {[%emt 0:00:05]} 38. Rxd8+ {[%emt 0:00:01]} Kg7 {[%emt 0:00:09]} 39. Rg1 {[%emt 0:00:02]} Qxg1+ {[%emt 0:00:21]} (39... Qg6 {seems wilder.} 40. f5 Qxg1+ 41. Kxg1 Rb6) 40. Kxg1 $15 {[%emt 0:00:01] KR-KR. The position is equal.} Rb6 {[%emt 0:00:38]} 41. Rd5 {[%emt 0:32:31]} Rxb2 {[%emt 0:01:17]} 42. Rxa5 {[%emt 0:00:00]} b5 {[%emt 0:04:43]} 43. Ra6 {[%emt 0:00:00]} Kf7 {[%emt 0:00:41]} 44. Rb6 {[%emt 0:00:00]} e3 {[%emt 0:01:46]} 45. Kf1 {[%emt 0:00:00] Weighted Error Value: White=0.39/Black=0.44} 1/2-1/2